[Event "*** Titled Tuesday Blitz"]
[Site "Chess.com"]
[Date "2021.03.02"]
[Round "1"]
[White "Aslanov_Umid"]
[Black "wannabe2700"]
[Result "1-0"]
[WhiteElo "2412"]
[BlackElo "2720"]
[TimeControl "180+1"]
[EndTime "10:07:53 PST"]
[Termination "Aslanov_Umid won by resignation"]

1. e4 {[%clk 0:03:00.9]} 1... d5 {[%clk 0:02:58.2]} 2. exd5 {[%clk 0:03:00.6]}
2... Qxd5 {[%clk 0:02:59.1]} 3. Nc3 {[%clk 0:03:00.6]} 3... Qe5+ {[%clk
0:02:58.7]} 4. Be2 {[%clk 0:02:59.2]} 4... Bg4 {[%clk 0:02:58.8]} 5. h3 {[%clk
0:02:54.1]} 5... Bxe2 {[%clk 0:02:58.3]} 6. Ngxe2 {[%clk 0:02:55]} 6... Nc6
{[%clk 0:02:53.4]} 7. d3 {[%clk 0:02:47.7]} 7... O-O-O {[%clk 0:02:51.9]} 8. a3
{[%clk 0:02:44.9]} 8... Nf6 {[%clk 0:02:48.2]} 9. O-O {[%clk 0:02:44.5]} 9...
Qh5 {[%clk 0:02:16.8]} 10. b4 {[%clk 0:02:40.1]} 10... e5 {[%clk 0:02:16.3]} 11.
b5 {[%clk 0:02:29.9]} 11... Nd4 {[%clk 0:02:16.2]} 12. Nxd4 {[%clk 0:02:29.3]}
12... Qxd1 {[%clk 0:02:17.1]} 13. Rxd1 {[%clk 0:02:28.2]} 13... exd4 {[%clk
0:02:18]} 14. Ne2 {[%clk 0:02:28.5]} 14... Bc5 {[%clk 0:02:17.5]} 15. a4 {[%clk
0:02:15.4]} 15... Rhe8 {[%clk 0:02:14.4]} 16. Ng3 {[%clk 0:02:13.9]} 16... Nd5
{[%clk 0:02:11.8]} 17. Bd2 {[%clk 0:02:12.5]} 17... Bb4 {[%clk 0:02:10.4]} 18.
Bxb4 {[%clk 0:01:58.9]} 18... Nxb4 {[%clk 0:02:11.3]} 19. Rac1 {[%clk
0:01:45.3]} 19... Na2 {[%clk 0:02:09.4]} 20. Ra1 {[%clk 0:01:43.6]} 20... Nc3
{[%clk 0:02:08.1]} 21. Re1 {[%clk 0:01:43.8]} 21... g6 {[%clk 0:02:05.1]} 22.
Kf1 {[%clk 0:01:42.2]} 22... f5 {[%clk 0:02:04.2]} 23. Rxe8 {[%clk 0:01:34.9]}
23... Rxe8 {[%clk 0:02:03.9]} 24. h4 {[%clk 0:01:21.9]} 24... c6 {[%clk
0:01:59.1]} 25. f3 {[%clk 0:01:21.4]} 25... cxb5 {[%clk 0:01:53.7]} 26. axb5
{[%clk 0:01:21]} 26... Nxb5 {[%clk 0:01:54.6]} 27. Ra5 {[%clk 0:01:19.5]} 27...
a6 {[%clk 0:01:54.5]} 28. Kf2 {[%clk 0:01:17.9]} 28... Kc7 {[%clk 0:01:54.6]}
29. Ne2 {[%clk 0:01:15.5]} 29... Kb6 {[%clk 0:01:54.9]} 30. Ra1 {[%clk
0:01:15.4]} 30... Rc8 {[%clk 0:01:54.6]} 31. Ra2 {[%clk 0:01:13.1]} 31... a5
{[%clk 0:01:52.4]} 32. h5 {[%clk 0:01:10.7]} 32... Ra8 {[%clk 0:01:51.4]} 33.
hxg6 {[%clk 0:01:10.3]} 33... hxg6 {[%clk 0:01:52.3]} 34. Nf4 {[%clk 0:01:09.7]}
34... g5 {[%clk 0:01:42.7]} 35. Ne6 {[%clk 0:01:08.7]} 35... g4 {[%clk
0:01:41.7]} 36. fxg4 {[%clk 0:01:07.9]} 36... fxg4 {[%clk 0:01:42.6]} 37. Rb2
{[%clk 0:01:08.1]} 37... Kc6 {[%clk 0:01:42.5]} 38. Kg3 {[%clk 0:01:01.8]} 38...
a4 {[%clk 0:01:41.9]} 39. Kxg4 {[%clk 0:00:57.8]} 39... a3 {[%clk 0:01:41.9]}
40. Ra2 {[%clk 0:00:58]} 40... Nc3 {[%clk 0:01:42.2]} 41. Ra1 {[%clk 0:00:58.3]}
41... Kd5 {[%clk 0:01:39.8]} 42. Nc7+ {[%clk 0:00:58.5]} 42... Kc6 {[%clk
0:01:36.8]} 43. Nxa8 {[%clk 0:00:59.4]} 43... a2 {[%clk 0:01:37.3]} 44. Kf3
{[%clk 0:00:57.7]} 44... b5 {[%clk 0:01:34.9]} 45. g4 {[%clk 0:00:57.4]} 45...
Kb7 {[%clk 0:01:13.6]} 46. g5 {[%clk 0:00:58.3]} 46... Kxa8 {[%clk 0:01:14.5]}
47. g6 {[%clk 0:00:58]} 47... Nd5 {[%clk 0:01:14.7]} 48. Rxa2+ {[%clk
0:00:57.5]} 48... Kb7 {[%clk 0:01:15.1]} 49. g7 {[%clk 0:00:56.7]} 49... Nf6
{[%clk 0:01:13.4]} 50. Kg3 {[%clk 0:00:53.7]} 50... Nh5+ {[%clk 0:01:12.2]} 51.
Kg4 {[%clk 0:00:54]} 51... Nxg7 {[%clk 0:01:13.1]} 52. Kf4 {[%clk 0:00:54.5]}
52... Kc6 {[%clk 0:01:10.7]} 53. Ke5 {[%clk 0:00:54.8]} 53... Kc5 {[%clk
0:01:11.2]} 54. Ra7 {[%clk 0:00:54.3]} 54... Ne8 {[%clk 0:01:10.1]} 55. Ke6
{[%clk 0:00:48.4]} 55... Kc6 {[%clk 0:01:06.7]} 56. Ke5 {[%clk 0:00:38.4]} 56...
Nc7 {[%clk 0:01:03.2]} 57. Kxd4 {[%clk 0:00:38.2]} 57... Ne6+ {[%clk 0:01:02.8]}
58. Kc3 {[%clk 0:00:36.8]} 58... Nc5 {[%clk 0:01:03.1]} 59. d4 {[%clk
0:00:36.5]} 59... Ne4+ {[%clk 0:01:02.5]} 60. Kd3 {[%clk 0:00:35.9]} 60... Nd6
{[%clk 0:01:02.2]} 61. Rh7 {[%clk 0:00:32]} 61... Kd5 {[%clk 0:00:58.4]} 62.
Rh5+ {[%clk 0:00:31.3]} 62... Kc6 {[%clk 0:00:55.3]} 63. Kc3 {[%clk 0:00:29]}
63... Ne4+ {[%clk 0:00:51.6]} 64. Kb4 {[%clk 0:00:29.1]} 64... Nd6 {[%clk
0:00:46.7]} 65. Rh6 {[%clk 0:00:29.3]} 65... Kd5 {[%clk 0:00:36.2]} 66. Rxd6+
{[%clk 0:00:29.8]} 66... Kxd6 {[%clk 0:00:30.2]} 67. Kxb5 {[%clk 0:00:30.2]}
67... Kd5 {[%clk 0:00:30.7]} 68. c3 {[%clk 0:00:31.1]} 1-0

[Event "*** Titled Tuesday Blitz"]
[Site "Chess.com"]
[Date "2021.03.02"]
[Round "1"]
[White "cukin84"]
[Black "JimmmyZhang"]
[Result "0-1"]
[WhiteElo "2137"]
[BlackElo "2509"]
[TimeControl "180+1"]
[EndTime "10:07:53 PST"]
[Termination "JimmmyZhang won by resignation"]

1. e4 {[%clk 0:03:00.9]} 1... e6 {[%clk 0:03:00.3]} 2. d4 {[%clk 0:02:54.9]}
2... d5 {[%clk 0:03:00]} 3. Nc3 {[%clk 0:02:54.3]} 3... Nf6 {[%clk 0:02:59.5]}
4. e5 {[%clk 0:02:54.1]} 4... Nfd7 {[%clk 0:02:58.9]} 5. f4 {[%clk 0:02:54.1]}
5... c5 {[%clk 0:02:59.3]} 6. Nf3 {[%clk 0:02:54.1]} 6... Nc6 {[%clk 0:02:59.7]}
7. Be3 {[%clk 0:02:53.7]} 7... a6 {[%clk 0:02:59.6]} 8. Qd2 {[%clk 0:02:53]}
8... b5 {[%clk 0:02:59.7]} 9. a3 {[%clk 0:02:52.4]} 9... Qb6 {[%clk 0:02:59.9]}
10. Be2 {[%clk 0:02:50.9]} 10... cxd4 {[%clk 0:02:59.4]} 11. Nxd4 {[%clk
0:02:47]} 11... Bc5 {[%clk 0:02:59.5]} 12. O-O-O {[%clk 0:02:37.8]} 12... Bb7
{[%clk 0:02:55.3]} 13. Bh5 {[%clk 0:02:30]} 13... g6 {[%clk 0:02:54.4]} 14. Bg4
{[%clk 0:02:29.5]} 14... Rc8 {[%clk 0:02:52.5]} 15. Nce2 {[%clk 0:02:25.9]}
15... h5 {[%clk 0:02:51]} 16. Bf3 {[%clk 0:02:25.3]} 16... a5 {[%clk 0:02:50.3]}
17. g4 {[%clk 0:02:20.5]} 17... hxg4 {[%clk 0:02:48.3]} 18. Bxg4 {[%clk
0:02:20.4]} 18... b4 {[%clk 0:02:48]} 19. a4 {[%clk 0:02:18.9]} 19... Ba6 {[%clk
0:02:43.2]} 20. Bg1 {[%clk 0:02:11.6]} 20... Rh4 {[%clk 0:02:34.6]} 21. Bxe6
{[%clk 0:02:00.3]} 21... fxe6 {[%clk 0:02:29]} 22. Nxe6 {[%clk 0:01:59.7]} 22...
Bxg1 {[%clk 0:02:18.9]} 23. Rhxg1 {[%clk 0:01:52.9]} 23... Bxe2 {[%clk
0:02:17.4]} 24. Qxe2 {[%clk 0:01:46.7]} 24... Ne7 {[%clk 0:02:11.6]} 25. Ng7+
{[%clk 0:01:41.9]} 25... Kd8 {[%clk 0:02:08]} 26. Kb1 {[%clk 0:01:27.3]} 26...
Rxf4 {[%clk 0:02:04.2]} 27. e6 {[%clk 0:01:25.1]} 27... Nc5 {[%clk 0:01:59.1]}
28. Qe5 {[%clk 0:01:17.2]} 28... Qc7 {[%clk 0:01:42.6]} 29. Rxd5+ {[%clk
0:01:15.2]} 29... Nxd5 {[%clk 0:01:42.7]} 30. Qxd5+ {[%clk 0:01:15.4]} 30... Ke7
{[%clk 0:01:42.5]} 31. Qg5+ {[%clk 0:01:12.6]} 31... Kf8 {[%clk 0:01:41.1]} 32.
e7+ {[%clk 0:01:09.2]} 32... Qxe7 {[%clk 0:01:37]} 33. Qxf4+ {[%clk 0:01:08.4]}
33... Kxg7 {[%clk 0:01:37]} 34. h4 {[%clk 0:01:02.6]} 34... Qf6 {[%clk
0:01:25.7]} 35. Qg4 {[%clk 0:00:58.1]} 35... Nxa4 {[%clk 0:01:20.5]} 36. Qd7+
{[%clk 0:00:48.1]} 36... Kh6 {[%clk 0:01:16.2]} 37. Qxa4 {[%clk 0:00:48.1]}
37... Rc5 {[%clk 0:01:06.9]} 38. Qe8 {[%clk 0:00:45.5]} 38... Rf5 {[%clk
0:01:03.8]} 39. Rd1 {[%clk 0:00:38.6]} 39... a4 {[%clk 0:00:54.1]} 40. Qe3+
{[%clk 0:00:36.7]} 40... Kg7 {[%clk 0:00:47]} 41. Rd7+ {[%clk 0:00:35.7]} 41...
Kf8 {[%clk 0:00:47.2]} 42. Qa7 {[%clk 0:00:29.6]} 42... Rf1+ {[%clk 0:00:44.5]}
43. Ka2 {[%clk 0:00:29.8]} 43... Qe6+ {[%clk 0:00:44.9]} 44. b3 {[%clk
0:00:29.6]} 44... axb3+ {[%clk 0:00:44.8]} 45. Kb2 {[%clk 0:00:27.4]} 45... Qf6+
{[%clk 0:00:43.8]} 46. Kxb3 {[%clk 0:00:27.8]} 46... Qc3+ {[%clk 0:00:42.7]} 47.
Ka4 {[%clk 0:00:27.5]} 47... Ra1+ {[%clk 0:00:43.2]} 48. Kb5 {[%clk 0:00:27.8]}
48... Rxa7 {[%clk 0:00:43.7]} 49. Rxa7 {[%clk 0:00:27.5]} 49... Qe5+ {[%clk
0:00:42]} 50. Ka6 {[%clk 0:00:23.7]} 50... Qd4 {[%clk 0:00:27.7]} 51. Rb7 {[%clk
0:00:22.8]} 51... Qxh4 {[%clk 0:00:21]} 52. Ka5 {[%clk 0:00:22.7]} 52... Qc4
{[%clk 0:00:18.7]} 53. Rxb4 {[%clk 0:00:22]} 53... Qxc2 {[%clk 0:00:19.2]} 54.
Kb5 {[%clk 0:00:21.8]} 54... Kg7 {[%clk 0:00:19.6]} 55. Rc4 {[%clk 0:00:22]}
55... Qf5+ {[%clk 0:00:19.3]} 56. Kb4 {[%clk 0:00:21.9]} 56... Kf6 {[%clk
0:00:20.2]} 57. Kc3 {[%clk 0:00:21.3]} 57... g5 {[%clk 0:00:20.5]} 58. Kd2
{[%clk 0:00:21.3]} 58... g4 {[%clk 0:00:20.9]} 59. Ke3 {[%clk 0:00:21.6]} 59...
Kg5 {[%clk 0:00:21.5]} 60. Re4 {[%clk 0:00:20.9]} 60... Qf3+ {[%clk 0:00:21.7]}
61. Kd4 {[%clk 0:00:21.1]} 61... Kh4 {[%clk 0:00:21.1]} 62. Re3 {[%clk 0:00:21]}
62... Kg3 {[%clk 0:00:20.9]} 63. Rxf3+ {[%clk 0:00:20.9]} 63... gxf3 {[%clk
0:00:21.8]} 64. Ke4 {[%clk 0:00:21]} 64... f2 {[%clk 0:00:22.7]} 0-1

[Event "*** Titled Tuesday Blitz"]
[Site "Chess.com"]
[Date "2021.03.02"]
[Round "1"]
[White "CrazyMartian"]
[Black "NateSolon"]
[Result "0-1"]
[WhiteElo "2278"]
[BlackElo "2588"]
[TimeControl "180+1"]
[EndTime "10:07:54 PST"]
[Termination "NateSolon won on time"]

1. d4 {[%clk 0:03:00.6]} 1... Nf6 {[%clk 0:02:59.3]} 2. c4 {[%clk 0:02:59.7]}
2... e6 {[%clk 0:02:58.9]} 3. Nc3 {[%clk 0:02:59.3]} 3... Bb4 {[%clk 0:02:58.4]}
4. Qc2 {[%clk 0:02:59.5]} 4... b6 {[%clk 0:02:55]} 5. a3 {[%clk 0:02:48.4]} 5...
Bxc3+ {[%clk 0:02:54.3]} 6. Qxc3 {[%clk 0:02:49.3]} 6... Bb7 {[%clk 0:02:54.2]}
7. Nf3 {[%clk 0:02:45.1]} 7... O-O {[%clk 0:02:53.1]} 8. Bg5 {[%clk 0:02:43.1]}
8... h6 {[%clk 0:02:51.1]} 9. Bh4 {[%clk 0:02:41.8]} 9... d6 {[%clk 0:02:49.4]}
10. e3 {[%clk 0:02:40.8]} 10... Nbd7 {[%clk 0:02:45]} 11. Be2 {[%clk 0:02:40.6]}
11... c5 {[%clk 0:02:41.6]} 12. Rd1 {[%clk 0:02:39.1]} 12... Qc7 {[%clk
0:02:41.4]} 13. Bg3 {[%clk 0:02:38.1]} 13... Ne4 {[%clk 0:02:40.9]} 14. Qc1
{[%clk 0:02:28.8]} 14... Rac8 {[%clk 0:02:39.3]} 15. O-O {[%clk 0:02:28.1]}
15... Ndf6 {[%clk 0:02:33.6]} 16. dxc5 {[%clk 0:02:19.2]} 16... Qxc5 {[%clk
0:02:32.2]} 17. b4 {[%clk 0:02:11.3]} 17... Qc7 {[%clk 0:02:26.3]} 18. Qb2
{[%clk 0:02:09.5]} 18... Nxg3 {[%clk 0:02:19]} 19. hxg3 {[%clk 0:02:09.4]} 19...
d5 {[%clk 0:02:12.6]} 20. Rc1 {[%clk 0:01:54.1]} 20... Qe7 {[%clk 0:02:06.7]}
21. Ne5 {[%clk 0:01:38.8]} 21... dxc4 {[%clk 0:01:59.3]} 22. Nxc4 {[%clk
0:01:31.7]} 22... Rfd8 {[%clk 0:01:50.3]} 23. Ne5 {[%clk 0:01:28.5]} 23... Ne4
{[%clk 0:01:32.8]} 24. Rxc8 {[%clk 0:01:20.9]} 24... Rxc8 {[%clk 0:01:33.7]} 25.
Nf3 {[%clk 0:00:57.2]} 25... Nc3 {[%clk 0:01:28.5]} 26. Re1 {[%clk 0:00:48.5]}
26... Qf6 {[%clk 0:01:23.9]} 27. Qd2 {[%clk 0:00:32.6]} 27... Ne4 {[%clk
0:01:16.5]} 28. Qd4 {[%clk 0:00:29.2]} 28... Rc3 {[%clk 0:00:59.6]} 29. a4
{[%clk 0:00:20.5]} 29... Bd5 {[%clk 0:00:48.4]} 30. a5 {[%clk 0:00:18.8]} 30...
Qxd4 {[%clk 0:00:41.5]} 31. Nxd4 {[%clk 0:00:18.9]} 31... bxa5 {[%clk 0:00:42]}
32. bxa5 {[%clk 0:00:19.8]} 32... Ra3 {[%clk 0:00:42]} 33. a6 {[%clk 0:00:20]}
33... Nc5 {[%clk 0:00:38.1]} 34. Rc1 {[%clk 0:00:18.1]} 34... Nxa6 {[%clk
0:00:34.9]} 35. Rc8+ {[%clk 0:00:17.9]} 35... Kh7 {[%clk 0:00:34.5]} 36. Nb5
{[%clk 0:00:15.7]} 36... Ra2 {[%clk 0:00:27.4]} 37. Nxa7 {[%clk 0:00:13.9]}
37... Rxe2 {[%clk 0:00:26.2]} 38. Nb5 {[%clk 0:00:09.2]} 38... Re1+ {[%clk
0:00:24.6]} 39. Kh2 {[%clk 0:00:08.7]} 39... Re2 {[%clk 0:00:24.3]} 40. Kg1
{[%clk 0:00:08.2]} 40... Nb4 {[%clk 0:00:24.3]} 41. Nd4 {[%clk 0:00:07.8]} 41...
Re1+ {[%clk 0:00:24.2]} 42. Kh2 {[%clk 0:00:07.1]} 42... Nd3 {[%clk 0:00:25.1]}
43. Rc2 {[%clk 0:00:05.6]} 43... Rf1 {[%clk 0:00:21]} 44. f3 {[%clk 0:00:04.6]}
44... Rf2 {[%clk 0:00:20.3]} 45. Rc3 {[%clk 0:00:04.1]} 45... Ne1 {[%clk
0:00:19.3]} 46. Kg1 {[%clk 0:00:03.8]} 46... Ra2 {[%clk 0:00:16.4]} 47. Kf1
{[%clk 0:00:01.1]} 47... Nxg2 {[%clk 0:00:15]} 48. e4 {[%clk 0:00:02]} 48... Bb7
{[%clk 0:00:14]} 49. Ne2 {[%clk 0:00:02.3]} 49... Ba6 {[%clk 0:00:13.9]} 50. Re3
{[%clk 0:00:01.1]} 50... Nxe3+ {[%clk 0:00:13.3]} 0-1

[Event "*** Titled Tuesday Blitz"]
[Site "Chess.com"]
[Date "2021.03.02"]
[Round "1"]
[White "Love_craft"]
[Black "CzechmVIII"]
[Result "1-0"]
[WhiteElo "2564"]
[BlackElo "2258"]
[TimeControl "180+1"]
[EndTime "10:07:58 PST"]
[Termination "Love_craft won by resignation"]

1. Nf3 {[%clk 0:03:00.9]} 1... c5 {[%clk 0:02:59.9]} 2. g3 {[%clk 0:03:01.8]}
2... b6 {[%clk 0:03:00]} 3. Bg2 {[%clk 0:03:02.7]} 3... Bb7 {[%clk 0:03:00.4]}
4. O-O {[%clk 0:03:03.6]} 4... Nf6 {[%clk 0:03:00.6]} 5. d3 {[%clk 0:03:04.1]}
5... e6 {[%clk 0:03:00.9]} 6. e4 {[%clk 0:03:04.3]} 6... d6 {[%clk 0:03:01.1]}
7. Nh4 {[%clk 0:03:03.3]} 7... Nc6 {[%clk 0:02:59.7]} 8. f4 {[%clk 0:03:03.1]}
8... Be7 {[%clk 0:02:59.6]} 9. c3 {[%clk 0:03:02.7]} 9... O-O {[%clk 0:02:59]}
10. Nd2 {[%clk 0:03:01.2]} 10... a6 {[%clk 0:02:54.6]} 11. Kh1 {[%clk
0:02:53.7]} 11... Nd7 {[%clk 0:02:46]} 12. Nhf3 {[%clk 0:02:51.2]} 12... Qc7
{[%clk 0:02:42.8]} 13. g4 {[%clk 0:02:49.5]} 13... Rad8 {[%clk 0:02:33.4]} 14.
g5 {[%clk 0:02:48.3]} 14... d5 {[%clk 0:02:17.2]} 15. e5 {[%clk 0:02:47]} 15...
g6 {[%clk 0:02:06.8]} 16. Qe2 {[%clk 0:02:44.3]} 16... Rfe8 {[%clk 0:01:58.8]}
17. Ng1 {[%clk 0:02:15.1]} 17... Bf8 {[%clk 0:01:56.9]} 18. Rf3 {[%clk
0:02:14.4]} 18... Ne7 {[%clk 0:01:51.3]} 19. Rh3 {[%clk 0:02:13.1]} 19... Nf5
{[%clk 0:01:44.8]} 20. Ndf3 {[%clk 0:02:13.1]} 20... d4 {[%clk 0:01:38.2]} 21.
c4 {[%clk 0:02:12.1]} 21... Nb8 {[%clk 0:01:34.3]} 22. Bd2 {[%clk 0:02:10.3]}
22... Nc6 {[%clk 0:01:31.2]} 23. a3 {[%clk 0:02:10.3]} 23... a5 {[%clk
0:01:26.5]} 24. Qf2 {[%clk 0:02:01.3]} 24... Nce7 {[%clk 0:01:21]} 25. b3 {[%clk
0:01:53.7]} 25... Bc6 {[%clk 0:01:20.6]} 26. Rf1 {[%clk 0:01:52.7]} 26... Qb7
{[%clk 0:01:20.2]} 27. Ne2 {[%clk 0:01:52.1]} 27... Ne3 {[%clk 0:01:09.1]} 28.
Qh4 {[%clk 0:01:29.6]} 28... h5 {[%clk 0:00:57.5]} 29. gxh6 {[%clk 0:01:29.6]}
29... N7f5 {[%clk 0:00:49.4]} 30. Qf6 {[%clk 0:01:00.2]} 30... Ng7 {[%clk
0:00:24.3]} 31. hxg7 {[%clk 0:00:55.9]} 31... Bxg7 {[%clk 0:00:24.5]} 32. Qh4
{[%clk 0:00:33.8]} 32... Nxf1 {[%clk 0:00:24.4]} 33. Bxf1 {[%clk 0:00:20.7]}
33... Bxf3+ {[%clk 0:00:23.5]} 34. Kg1 {[%clk 0:00:19.6]} 34... Bh5 {[%clk
0:00:21.1]} 35. Bg2 {[%clk 0:00:17.4]} 35... Qe7 {[%clk 0:00:21]} 36. Qf2 {[%clk
0:00:16.6]} 36... Qd7 {[%clk 0:00:16.8]} 37. Ng3 {[%clk 0:00:16.2]} 37... Bg4
{[%clk 0:00:15.4]} 38. Rh4 {[%clk 0:00:16.6]} 38... Bf5 {[%clk 0:00:15.4]} 39.
Nxf5 {[%clk 0:00:15.8]} 39... exf5 {[%clk 0:00:15.6]} 40. Bd5 {[%clk 0:00:15.2]}
40... Qe7 {[%clk 0:00:15]} 41. Rh3 {[%clk 0:00:14.9]} 41... Rxd5 {[%clk
0:00:13.7]} 42. cxd5 {[%clk 0:00:15.8]} 42... Qd7 {[%clk 0:00:14.2]} 43. Qg2
{[%clk 0:00:15]} 43... b5 {[%clk 0:00:13.7]} 44. Bxa5 {[%clk 0:00:14.1]} 44...
c4 {[%clk 0:00:13.3]} 45. bxc4 {[%clk 0:00:13.7]} 45... bxc4 {[%clk 0:00:13.7]}
46. dxc4 {[%clk 0:00:14.6]} 46... Rb8 {[%clk 0:00:12.5]} 47. Bb4 {[%clk
0:00:14.3]} 47... Qa4 {[%clk 0:00:12]} 48. d6 {[%clk 0:00:12.5]} 48... Qd1+
{[%clk 0:00:10.7]} 49. Qf1 {[%clk 0:00:12.5]} 49... Qxf1+ {[%clk 0:00:09.4]} 50.
Kxf1 {[%clk 0:00:12.1]} 50... Bf8 {[%clk 0:00:07.7]} 51. Rd3 {[%clk 0:00:11.8]}
51... Ra8 {[%clk 0:00:06.7]} 52. Rxd4 {[%clk 0:00:11.6]} 52... Rc8 {[%clk
0:00:07.6]} 53. d7 {[%clk 0:00:11.4]} 53... Rd8 {[%clk 0:00:08.1]} 54. Bxf8
{[%clk 0:00:10.9]} 54... Kxf8 {[%clk 0:00:07.9]} 55. c5 {[%clk 0:00:11.8]} 55...
Ke7 {[%clk 0:00:08.4]} 56. c6 {[%clk 0:00:12.1]} 56... f6 {[%clk 0:00:08.7]} 57.
exf6+ {[%clk 0:00:11.6]} 57... Kxf6 {[%clk 0:00:08.8]} 58. c7 {[%clk 0:00:12]}
1-0

[Event "*** Titled Tuesday Blitz"]
[Site "Chess.com"]
[Date "2021.03.02"]
[Round "1"]
[White "AntonovaNadezhda"]
[Black "BigAl"]
[Result "0-1"]
[WhiteElo "2129"]
[BlackElo "2508"]
[TimeControl "180+1"]
[EndTime "10:07:59 PST"]
[Termination "BigAl won on time"]

1. b3 {[%clk 0:02:56.2]} 1... b6 {[%clk 0:02:58.6]} 2. Nf3 {[%clk 0:02:54.1]}
2... Bb7 {[%clk 0:02:59.5]} 3. g3 {[%clk 0:02:54.4]} 3... Nf6 {[%clk 0:02:58.6]}
4. Bg2 {[%clk 0:02:54]} 4... g6 {[%clk 0:02:59.1]} 5. Bb2 {[%clk 0:02:54.3]}
5... Bg7 {[%clk 0:02:59.8]} 6. O-O {[%clk 0:02:54.1]} 6... O-O {[%clk
0:03:00.4]} 7. d3 {[%clk 0:02:53.2]} 7... c5 {[%clk 0:02:59.7]} 8. c4 {[%clk
0:02:49.6]} 8... d6 {[%clk 0:02:53]} 9. Nc3 {[%clk 0:02:48.5]} 9... a6 {[%clk
0:02:52.1]} 10. e3 {[%clk 0:02:45]} 10... Nbd7 {[%clk 0:02:50.9]} 11. d4 {[%clk
0:02:44.5]} 11... cxd4 {[%clk 0:02:50.4]} 12. exd4 {[%clk 0:02:44]} 12... Rc8
{[%clk 0:02:46.6]} 13. Re1 {[%clk 0:02:42.5]} 13... Re8 {[%clk 0:02:46.6]} 14.
Qd2 {[%clk 0:02:38.1]} 14... e6 {[%clk 0:02:45.4]} 15. Rad1 {[%clk 0:02:27.6]}
15... Qc7 {[%clk 0:02:45.6]} 16. Ng5 {[%clk 0:02:11.2]} 16... Bxg2 {[%clk
0:02:44.8]} 17. Kxg2 {[%clk 0:02:11.4]} 17... Qb7+ {[%clk 0:02:44.2]} 18. Nf3
{[%clk 0:02:08.4]} 18... d5 {[%clk 0:02:39.1]} 19. Ne5 {[%clk 0:02:00.3]} 19...
dxc4+ {[%clk 0:02:36.3]} 20. f3 {[%clk 0:01:57.6]} 20... cxb3 {[%clk 0:02:33.1]}
21. axb3 {[%clk 0:01:56.9]} 21... b5 {[%clk 0:02:11.9]} 22. Nd3 {[%clk
0:01:42.4]} 22... Red8 {[%clk 0:02:03.1]} 23. b4 {[%clk 0:01:41.4]} 23... Nb6
{[%clk 0:02:00.8]} 24. Nc5 {[%clk 0:01:39.4]} 24... Qc6 {[%clk 0:02:01]} 25.
N3e4 {[%clk 0:01:35.7]} 25... Nxe4 {[%clk 0:01:53]} 26. Rxe4 {[%clk 0:01:30.4]}
26... Nc4 {[%clk 0:01:53.3]} 27. Qe2 {[%clk 0:01:29.5]} 27... a5 {[%clk
0:01:41.6]} 28. Bc3 {[%clk 0:01:24]} 28... a4 {[%clk 0:01:35.3]} 29. Qa2 {[%clk
0:01:07.1]} 29... Rd5 {[%clk 0:01:32.7]} 30. Qa1 {[%clk 0:01:04]} 30... Rcd8
{[%clk 0:01:32.1]} 31. Nd3 {[%clk 0:00:58.2]} 31... h5 {[%clk 0:01:17.2]} 32.
Nf4 {[%clk 0:00:57.7]} 32... Qd7 {[%clk 0:01:09.6]} 33. Nxd5 {[%clk 0:00:56.4]}
33... Qxd5 {[%clk 0:01:09.8]} 34. h4 {[%clk 0:00:50.5]} 34... Bh6 {[%clk
0:01:09]} 35. Kh2 {[%clk 0:00:39.6]} 35... Bg7 {[%clk 0:01:07.7]} 36. Rde1
{[%clk 0:00:37.4]} 36... Nd6 {[%clk 0:01:04.5]} 37. R4e3 {[%clk 0:00:32.2]}
37... Rc8 {[%clk 0:01:03.9]} 38. Qd1 {[%clk 0:00:30.8]} 38... Nf5 {[%clk
0:01:01.2]} 39. Rd3 {[%clk 0:00:28.9]} 39... Rc4 {[%clk 0:00:50.1]} 40. Qd2
{[%clk 0:00:24.8]} 40... Qd6 {[%clk 0:00:47.6]} 41. f4 {[%clk 0:00:23.6]} 41...
Qd5 {[%clk 0:00:48.1]} 42. Ba1 {[%clk 0:00:16.1]} 42... Nh6 {[%clk 0:00:47]} 43.
Kh3 {[%clk 0:00:15]} 43... Qf5+ {[%clk 0:00:46.3]} 44. Kg2 {[%clk 0:00:15]}
44... Qd5+ {[%clk 0:00:46.3]} 45. Kh3 {[%clk 0:00:14.4]} 45... Ng4 {[%clk
0:00:47]} 46. Qe2 {[%clk 0:00:12.3]} 46... Rxb4 {[%clk 0:00:41.9]} 47. Rc3
{[%clk 0:00:09]} 47... Rc4 {[%clk 0:00:39.2]} 48. Rxc4 {[%clk 0:00:09]} 48...
bxc4 {[%clk 0:00:40.1]} 49. Qc2 {[%clk 0:00:08.1]} 49... Bxd4 {[%clk 0:00:37.4]}
50. Bxd4 {[%clk 0:00:06.9]} 50... Qxd4 {[%clk 0:00:37.7]} 51. Qxa4 {[%clk
0:00:06]} 51... Nf2+ {[%clk 0:00:34.5]} 52. Kg2 {[%clk 0:00:04.9]} 52... Nd3
{[%clk 0:00:34.3]} 53. Qe8+ {[%clk 0:00:03.4]} 53... Kg7 {[%clk 0:00:34.4]} 54.
Rf1 {[%clk 0:00:04]} 54... Qe4+ {[%clk 0:00:33.2]} 55. Kh3 {[%clk 0:00:03.2]}
55... Qe2 {[%clk 0:00:30.5]} 56. Rh1 {[%clk 0:00:01.6]} 56... Nf2+ {[%clk
0:00:27.7]} 57. Kg2 {[%clk 0:00:02.2]} 57... Ng4+ {[%clk 0:00:25.9]} 58. Kh3
{[%clk 0:00:01.6]} 58... Qf3 {[%clk 0:00:26.2]} 0-1